{"text_format":"3","workbook":"xlsx","n_sheets":2,"sheets":["Sheet1","Sheet3"],"not_rendered":{"macros":1,"defined_names":1},"read":"whole","date_system":"1900"}

{"sheet":"Sheet1","index":0,"n_rows":445,"n_cols":3,"rows_kept":445,"merged":[[0,0,0,2],[1,0,1,2],[2,0,2,2]]}
["Northwestern University Linguistics Department"]
["Linguistics Data Consortium"]
["Please Note: If you are interested in viewing or borrowing LDC disks, please contact Linguistics Department at linguistics@northwestern.edu"]
["Database Name","Catalog No.","URL of Database Description"]
["2003 NIST Rich Transcription Evaluation Data","LDC2007S10","http://www.ldc.upenn.edu/Catalog/CatalogEntry.jsp?catalogId=LDC2007S10"]
["2003 NIST Speaker Recognition Evaluation","LDC2010S03","http://www.ldc.upenn.edu/Catalog/CatalogEntry.jsp?catalogId=LDC2010S03"]
["2004 Spring NIST Rich Transcription (RT-04S) Development Data","LDC2007S11","http://www.ldc.upenn.edu/Catalog/CatalogEntry.jsp?catalogId=LDC2007S11"]
["2004 Spring NIST Rich Transcription (RT-04S) Evaluation Data","LDC2007S12","http://www.ldc.upenn.edu/Catalog/CatalogEntry.jsp?catalogId=LDC2007S12"]
["2005 NIST Language Recognition Evaluation","LDC2008S05","http://www.ldc.upenn.edu/Catalog/CatalogEntry.jsp?catalogId=LDC2008S05"]
["2005 NIST Speaker Recognition Evaluation Test Data","LDC2011S04","http://www.ldc.upenn.edu/Catalog/CatalogEntry.jsp?catalogId=LDC2011S04"]
["2005 NIST Speaker Recognition Evaluation Training Data","LDC2011S01","http://www.ldc.upenn.edu/Catalog/CatalogEntry.jsp?catalogId=LDC2011S01"]
["2005 NIST/USF Evaluation Resources for the VACE Program - Broadcast News","LDC2012V01","http://www.ldc.upenn.edu/Catalog/CatalogEntry.jsp?catalogId=LDC2012V01"]
["2005 Spring NIST Rich Transcription (RT-05S) Conference Meeting Evaluation Set","LDC2011S06","http://www.ldc.upenn.edu/Catalog/CatalogEntry.jsp?catalogId=LDC2011S06"]
["2006 NIST Speaker Recognition Evaluation Test Set Part 1","LDC2011S10","http://www.ldc.upenn.edu/Catalog/CatalogEntry.jsp?catalogId=LDC2011S10"]
["2006 NIST Speaker Recognition Evaluation Test Set Part 2","LDC2012S01","http://www.ldc.upenn.edu/Catalog/CatalogEntry.jsp?catalogId=LDC2012S01"]
["2006 NIST Speaker Recognition Evaluation Training Set","LDC2011S09","http://www.ldc.upenn.edu/Catalog/catalogEntry.jsp?catalogId=LDC2011S09"]
["2006 NIST Spoken Term Detection Development Set","LDC2011S02","http://www.ldc.upenn.edu/Catalog/CatalogEntry.jsp?catalogId=LDC2011S02"]
["2006 NIST Spoken Term Detection Evaluation Set","LDC2011S03","http://www.ldc.upenn.edu/Catalog/CatalogEntry.jsp?catalogId=LDC2011S03"]
["2006 NIST/USF Evaluation Resources for the VACE Program Meeting Data Test Set Part 1","LDC2011V05","http://www.ldc.upenn.edu/Catalog/CatalogEntry.jsp?catalogId=LDC2011V05"]
["2006 NIST/USF Evaluation Resources for the VACE Program Meeting Data Test Set Part 2","LDC2011V06","http://www.ldc.upenn.edu/Catalog/catalogEntry.jsp?catalogId=LDC2011V06"]
["2007 NIST Language Recognition Evaluation Supplemental Training Set","LDC2009S05","http://www.ldc.upenn.edu/Catalog/CatalogEntry.jsp?catalogId=LDC2009S05"]
["2007 NIST Language Recognition Evaluation Test Set","LDC2009S04","http://www.ldc.upenn.edu/Catalog/CatalogEntry.jsp?catalogId=LDC2009S04"]
["2008 CoNLL Shared Task Data","LDC2009T12","http://www.ldc.upenn.edu/Catalog/CatalogEntry.jsp?catalogId=LDC2009T12"]
["2008 NIST Metricd for Machine - Translation (MetricsMATR08) Development Data","LDC2009T05","http://www.ldc.upenn.edu/Catalog/CatalogEntry.jsp?catalogId=LDC2009T05"]
["2008 NIST Speaker Recognition Evaluation (SRE), Training Set Part 1","LDC2011S05","http://www.ldc.upenn.edu/Catalog/CatalogEntry.jsp?catalogId=LDC2011S05"]
["2008 NIST Speaker Recognition Evaluation (SRE), Training Set Part 2","LDC2011S07","http://www.ldc.upenn.edu/Catalog/CatalogEntry.jsp?catalogId=LDC2011S07"]
["2008 NIST Speaker Recognition Evaluation Supplemental Set","LDC2011S11","http://www.ldc.upenn.edu/Catalog/CatalogEntry.jsp?catalogId=LDC2011S11"]
["2008 NIST Speaker Recognition Evalutation Test Set","LDC2011S08","http://www.ldc.upenn.edu/Catalog/catalogEntry.jsp?catalogId=LDC2011S08"]
["2008/2010 NIST Metrics for Machine Translation (MetricsMATr) GALE Evaluation Set","LDC2011T05","http://www.ldc.upenn.edu/Catalog/CatalogEntry.jsp?catalogId=LDC2011T05"]
["2009 CoNLL Shared Task Part 1","LDC2012T03","http://www.ldc.upenn.edu/Catalog/CatalogEntry.jsp?catalogId=LDC2012T03"]
["2009 CoNLL Shared Task Part 2","LDC2012T04","http://www.ldc.upenn.edu/Catalog/CatalogEntry.jsp?catalogId=LDC2012T04"]
["2009 NIST Language Recognition Evaluation Test Set",{"$f":"RIGHT(C32,10)","v":"LDC2014S06"},"http://www.ldc.upenn.edu/Catalog/CatalogEntry.jsp?catalogId=LDC2014S06"]
["2010 NIST Speaker Recognition Evaluation Test Set","LDC2017S06","https://catalog.ldc.upenn.edu/LDC2017S06"]
["2011 NIST Language Recognition Evaluation Test Set",{"$f":"RIGHT(C34,10)","v":"LDC2018S06"},"https://catalog.ldc.upenn.edu/LDC2018S06"]
["2011 NIST Language Recognition Evaluation Test Set",{"$f":"RIGHT(C35,10)","v":"LDC2018S06"},"https://catalog.ldc.upenn.edu/LDC2018S06"]
["2015-2016 CoNLL Shared Task","LDC2017T13","https://catalog.ldc.upenn.edu/LDC2017T13"]
["2016 NIST Speaker Recognition Evaluation Test Set","LDC2019S20","https://catalog.ldc.upenn.edu/LDC2019S20"]
["2017 NIST Language Recognition Evaluation Training and Development Sets","LDC2022S10","https://catalog.ldc.upenn.edu/LDC2022S10"]
["2017 NIST OpenSAT Pilot - SSSF","LDC2022S01","https://catalog.ldc.upenn.edu/LDC2022S01"]
["2018 NIST Speaker Recognition Evaluation Test Set","LDC2020S04","https://catalog.ldc.upenn.edu/LDC2020S04"]
["Abstract Meaning Representation (AMR) Annotation Release 1.0",{"$f":"RIGHT(C41,10)","v":"LDC2014T12"},"http://www.ldc.upenn.edu/Catalog/CatalogEntry.jsp?catalogId=LDC2014T12"]
["Abstract Meaning Representation (AMR) Annotation Release 2.0","LDC2017T10","https://catalog.ldc.upenn.edu/LDC2017T10"]
["Abstract Meaning Representation (AMR) Annotation Release 3.0","LDC2020T02","https://catalog.ldc.upenn.edu/LDC2020T02"]
["Abstract Meaning Representation 2.0 - Four Translations","LDC2020T07","https://catalog.ldc.upenn.edu/LDC2020T07"]
["ACE 2005 English SpatialML Annotations","LDC2008T03","http://www.ldc.upenn.edu/Catalog/CatalogEntry.jsp?catalogId=LDC2008T03"]
["Ace 2005 English SpatialML Annotations Version 2","LDC2011T02","http://www.ldc.upenn.edu/Catalog/CatalogEntry.jsp?catalogId=LDC2011T02"]
["ACE 2005 Mandarin SpatiaIML Annotations","LDC2010T09","http://www.ldc.upenn.edu/Catalog/CatalogEntry.jsp?catalogId=LDC2010T09"]
["ACE 2007 Multilingual Training Corpus",{"$f":"RIGHT(C48,10)","v":"LDC2014T18"},"http://www.ldc.upenn.edu/Catalog/CatalogEntry.jsp?catalogId=LDC2014T18"]
["ACE Time Normalization (TERN) 2004 English Evaluation Data V1.0","LDC2010T18","http://www.ldc.upenn.edu/Catalog/CatalogEntry.jsp?catalogId=LDC2010T18"]
["ACL Anthology Reference Corpus","LDC2009T29","http://www.ldc.upenn.edu/Catalog/CatalogEntry.jsp?catalogId=LDC2009T29"]
["An English Dictionary of the Tamil Verb","LDC2008L01","http://www.ldc.upenn.edu/Catalog/CatalogEntry.jsp?catalogId=LDC2008L01"]
["An English Dictionary of the Tamil Verb - Second Edition","LDC2009L01","http://www.ldc.upenn.edu/Catalog/CatalogEntry.jsp?catalogId=LDC2009L01"]
["ANC 2nd Release","LDC2005T35","http://www.ldc.upenn.edu/Catalog/CatalogEntry.jsp?catalogId=LDC2005T35"]
["Ancient Chinese Corpus","LDC2017T14","https://catalog.ldc.upenn.edu/LDC2017T14"]
["Annotated English Gigaword","LDC2012T21","http://www.ldc.upenn.edu/Catalog/CatalogEntry.jsp?catalogId=LDC2012T21"]
["AQUAINT-2 Information-Retrieval Text Research Collection","LDC2008T25","http://www.ldc.upenn.edu/Catalog/CatalogEntry.jsp?catalogId=LDC2008T25"]
["Arabic Gigaword Fifth Edition","LDC2011T11","http://www.ldc.upenn.edu/Catalog/catalogEntry.jsp?catalogId=LDC2011T11"]
["Arabic Gigaword Fourth Edition","LDC2009T30","http://www.ldc.upenn.edu/Catalog/CatalogEntry.jsp?catalogId=LDC2009T30"]
["Arabic Gigaword Third Edition","LDC2007T40","http://www.ldc.upenn.edu/Catalog/CatalogEntry.jsp?catalogId=LDC2007T40"]
["Arabic Newswire English Translation Collection","LDC2009T22","http://www.ldc.upenn.edu/Catalog/CatalogEntry.jsp?catalogId=LDC2009T22"]
["Arabic Speech Recognition Pronunciation Dictionary","LDC2017L01","https://catalog.ldc.upenn.edu/LDC2017L01"]
["Arabic Treebank - Broadcast News v1.0","LDC2012T07","http://www.ldc.upenn.edu/Catalog/catalogEntry.jsp?catalogId=LDC2012T07"]
["Arabic Treebank - Weblog","LDC2016T02","http://www.ldc.upenn.edu/Catalog/CatalogEntry.jsp?catalogId=LDC2016T02"]
["Arabic Treebank: Part 1 v 4.1","LDC2010T13","http://www.ldc.upenn.edu/Catalog/CatalogEntry.jsp?catalogId=LDC2010T13"]
["Arabic Treebank: Part 2 v 3.1","LDC2011T09","http://www.ldc.upenn.edu/Catalog/CatalogEntry.jsp?catalogId=LDC2011T09"]
["Arabic Treebank: Part 3 v 3.2","LDC2010T08","http://www.ldc.upenn.edu/Catalog/CatalogEntry.jsp?catalogId=LDC2010T08"]
["Arabic-Dialect/English Parallel Text","LDC2012T09","http://www.ldc.upenn.edu/Catalog/CatalogEntry.jsp?catalogId=LDC2012T09"]
["ARL Arabic Dependency Treebank","LDC2016T18","http://www.ldc.upenn.edu/Catalog/CatalogEntry.jsp?catalogId=LDC2016T18"]
["ARL Urdu Speech Database Training Data","LDC2007S03","http://www.ldc.upenn.edu/Catalog/CatalogEntry.jsp?catalogId=LDC2007S03"]
["Articulation Index LSCP","LDC2015S12","http://www.ldc.upenn.edu/Catalog/CatalogEntry.jsp?catalogId=LDC2015S12"]
["Asian Elephant Vocalizations","LDC2010S05","http://www.ldc.upenn.edu/Catalog/CatalogEntry.jsp?catalogId=LDC2010S05"]
["ASpIRE Development and Development Test Sets","LDC2017S21","https://catalog.ldc.upenn.edu/LDC2017S21"]
["ATIS - Seven Languages","LDC2021T04","https://catalog.ldc.upenn.edu/LDC2021T04"]
["Audiovisual Database of Spoken American English","LDC2009V01","http://www.ldc.upenn.edu/Catalog/CatalogEntry.jsp?catalogId=LDC2009V01"]
["Audiovisual Database of Spoken American English","LDC2009V01","https://catalog.ldc.upenn.edu/LDC2009V01"]
["Avatar Education Portuguese","LDC2018S15","https://catalog.ldc.upenn.edu/LDC2018S15"]
["Bamanankan Lexicon","LDC2016L01","https://catalog.ldc.upenn.edu/LDC2016L01"]
["BBN PCET","LDC2005T33","http://www.ldc.upenn.edu/Catalog/CatalogEntry.jsp?catalogId=LDC2005T33"]
["BOLT Arabic Discussion Forum Parallel Training Data","LDC2019T01","https://catalog.ldc.upenn.edu/LDC2019T01"]
["BOLT Arabic Discussion Forums","LDC2018T10","https://catalog.ldc.upenn.edu/LDC2018T10"]
["BOLT Chinese Co-reference -- Discussion Forum, SMS/Chat, and Conversational Telephone Speech",{"$f":"RIGHT(C81,10)","v":"LDC2021T07"},"https://catalog.ldc.upenn.edu/LDC2021T07"]
["BOLT Chinese Discussion Forum Parallel Training Data","LDC2017T05","http://www.ldc.upenn.edu/Catalog/catalogEntry.jsp?catalogId=LDC2017T05"]
["BOLT Chinese Discussion Forums (flash drive)","LDC2016T05","http://www.ldc.upenn.edu/Catalog/CatalogEntry.jsp?catalogId=LDC2016T05"]
["BOLT Chinese SMS/Chat",{"$f":"RIGHT(C84,10)","v":"LDC2018T15"},"https://catalog.ldc.upenn.edu/LDC2018T15"]
["BOLT Chinese SMS/Chat",{"$f":"RIGHT(C85,10)","v":"LDC2018T15"},"https://catalog.ldc.upenn.edu/LDC2018T15"]
["BOLT Chinese SMS/Chat Parallel Training Data","LDC2021T11","https://catalog.ldc.upenn.edu/LDC2021T11"]
["BOLT Chinese-English Word Alignment and Tagging -- Conversational Telephone Speech Training","LDC2020T15","https://catalog.ldc.upenn.edu/LDC2020T15"]
["BOLT Chinese-English Word Alignment and Tagging -- SMS/Chat Training","LDC2019T13","https://catalog.ldc.upenn.edu/LDC2019T13"]
["BOLT Chinese-English Word Alignment and Tagging Discussion Forum Training","LDC2015T19","http://www.ldc.upenn.edu/Catalog/CatalogEntry.jsp?catalogId=LDC2016T19"]
["BOLT Egyptian Arabic Co-reference -- Discussion Forum, SMS/Chat, and Conversational Telephone Speech","LDC2021T14","https://catalog.ldc.upenn.edu/LDC2021T14"]
["BOLT Egyptian Arabic PropBank and Sense -- Discussion Forum, SMS/Chat, and Conversational Telephone Speech","LDC2021T18","https://catalog.ldc.upenn.edu/LDC2021T18"]
["BOLT Egyptian Arabic SMS/Chat and Transliteration","LDC2017T07","https://catalog.ldc.upenn.edu/LDC2017T07"]
["BOLT Egyptian Arabic SMS/Chat Parallel Training Data","LDC2021T15","https://catalog.ldc.upenn.edu/LDC2021T15"]
["BOLT Egyptian Arabic Treebank - Conversational Telephone Speech","LDC2021T12","https://catalog.ldc.upenn.edu/LDC2021T12"]
["BOLT Egyptian Arabic Treebank - Discussion Forum","LDC2018T23","https://catalog.ldc.upenn.edu/LDC2018T23"]
["BOLT Egyptian Arabic Treebank - SMS/Chat","LDC2021T17","https://catalog.ldc.upenn.edu/LDC2021T17"]
["BOLT Egyptian Arabic-English Word Alignment -- Conversational Telephone Speech Training","LDC2020T05","https://catalog.ldc.upenn.edu/LDC2020T05"]
["BOLT Egyptian Arabic-English Word Alignment -- SMS/Chat Training","LDC2019T18","https://catalog.ldc.upenn.edu/LDC2019T18"]
["BOLT Egyptian-English Word Alignment -- Discussion Forum Training","LDC2019T06","https://catalog.ldc.upenn.edu/LDC2019T06"]
["BOLT English Co-reference -- Discussion Forum, SMS/Chat, and Conversational Telephone Speech","LDC2020T20","https://catalog.ldc.upenn.edu/LDC2020T20"]
["BOLT English Discussion Forums","LDC2017T11","https://catalog.ldc.upenn.edu/LDC2017T11"]
["BOLT English PropBank and Sense -- Discussion Forum, SMS/Chat, and Conversational Telephone Speech","LDC2020T21","https://catalog.ldc.upenn.edu/LDC2020T21"]
["BOLT English SMS/Chat",{"$f":"RIGHT(C103,10)","v":"LDC2018T19"},"https://catalog.ldc.upenn.edu/LDC2018T19"]
["BOLT English SMS/Chat",{"$f":"RIGHT(C104,10)","v":"LDC2018T19"},"https://catalog.ldc.upenn.edu/LDC2018T19"]
["BOLT English Translation Treebank - Chinese SMS/Chat","LDC2021T19","https://catalog.ldc.upenn.edu/LDC2021T19"]
["BOLT English Translation Treebank - Egyptian Arabic SMS/Chat","LDC2022T06","https://catalog.ldc.upenn.edu/LDC2022T06"]
["BOLT English Treebank - Discussion Forum","LDC2019T15","https://catalog.ldc.upenn.edu/LDC2019T15"]
["BOLT Information Retrieval Comprehensive Training and Evaluation",{"$f":"RIGHT(C108,10)","v":"LDC2018T18"},"https://catalog.ldc.upenn.edu/LDC2018T18"]
["British National Corpus - XML Edition",null,"http://www.natcorp.ox.ac.uk/"]
["Broadcast News Lattices","LDC2011T06","http://www.ldc.upenn.edu/Catalog/CatalogEntry.jsp?catalogId=LDC2011T06"]
["CALLFRIEND American English-Non-Southern Dialect Second Edition","LDC2019S21","https://catalog.ldc.upenn.edu/LDC2019S21"]
["CALLFRIEND American English-Non-Southern Dialect Second Edition","LDC2019S21","https://catalog.ldc.upenn.edu/LDC2019S21"]
["CALLFRIEND Canadian French Second Edition","LDC2019S18","https://catalog.ldc.upenn.edu/LDC2019S18"]
["CALLFRIEND Egyptian Arabic Second Edition","LDC2019S04","https://catalog.ldc.upenn.edu/LDC2019S04"]
["CALLFRIEND Farsi Second Edition Speech",{"$f":"RIGHT(C115,10)","v":"LDC2014S01"},"http://www.ldc.upenn.edu/Catalog/CatalogEntry.jsp?catalogId=LDC2014S01"]
["CALLFRIEND Farsi Second Edition Transcripts",{"$f":"RIGHT(C116,10)","v":"LDC2014T01"},"http://www.ldc.upenn.edu/Catalog/CatalogEntry.jsp?catalogId=LDC2014T01"]
["CALLFRIEND Mandarin Chinese-Mainland Dialect Second Edition",{"$f":"RIGHT(C117,10)","v":"LDC2018S09"},"https://catalog.ldc.upenn.edu/LDC2018S09"]
["CALLFRIEND Mandarin Chinese-Mainland Dialect Second Edition",{"$f":"RIGHT(C118,10)","v":"LDC2018S09"},"https://catalog.ldc.upenn.edu/LDC2018S09"]
["CALLFRIEND Mandarin Chinese-Taiwan Dialect Second Edition","LDC2020S06","https://catalog.ldc.upenn.edu/LDC2020S06"]
["Catalan Timebank 1.0","LDC2012T10","http://www.ldc.upenn.edu/Catalog/catalogEntry.jsp?catalogId=LDC2012T10"]
["CHAracterizing Individual Spekers (CHAINS)","LDC2008S09","http://www.ldc.upenn.edu/Catalog/CatalogEntry.jsp?catalogId=LDC2008S09"]
["CHiME2 Grid","LDC2017S07","https://catalog.ldc.upenn.edu/LDC2017S07"]
["CHiME2 WSJ0","LDC2017S10","https://catalog.ldc.upenn.edu/LDC2017S10"]
["CHiME3","LDC2017S24","https://catalog.ldc.upenn.edu/LDC2017S24"]
["Chinese Abstract Meaning Representation 1.0",{"$f":"RIGHT(C125,10)","v":"LDC2019T07"},"https://catalog.ldc.upenn.edu/LDC2019T07"]
["Chinese Abstract Meaning Representation 2.0","LDC2021T13","https://catalog.ldc.upenn.edu/LDC2021T13"]
["Chinese CogBank","LDC2020T01","https://catalog.ldc.upenn.edu/LDC2020T01"]
["Chinese Dependency Treebank 1.0","LDC2012T05","http://www.ldc.upenn.edu/Catalog/CatalogEntry.jsp?catalogId=LDC2012T05"]
["Chinese Discourse Treebank 0.5",{"$f":"RIGHT(C129,10)","v":"LDC2014T21"},"http://www.ldc.upenn.edu/Catalog/CatalogEntry.jsp?catalogId=LDC2014T21"]
["Chinese Gigaword Fifth Edition","LDC2011T13","http://www.ldc.upenn.edu/Catalog/catalogEntry.jsp?catalogId=LDC2011T13"]
["Chinese Gigaword Fourth Edition","LDC2009T27","http://www.ldc.upenn.edu/Catalog/CatalogEntry.jsp?catalogId=LDC2009T27"]
["Chinese Gigaword Second Edition","LDC2005T14","http://www.ldc.upenn.edu/Catalog/CatalogEntry.jsp?catalogId=LDC2005T14"]
["Chinese Gigaword Third Edition","LDC2007T38","http://www.ldc.upenn.edu/Catalog/CatalogEntry.jsp?catalogId=LDC2007T38"]
["Chinese Lexical Resources for Gender, Number, Animacy","LDC2020L02","https://catalog.ldc.upenn.edu/LDC2020L02"]
["Chinese Proposition bank 2.0 (CPB2.0)","LDC2008T07","http://www.ldc.upenn.edu/Catalog/CatalogEntry.jsp?catalogId=LDC2008T07"]
["Chinese Proposition Bank 3.0",{"$f":"RIGHT(C136,10)","v":"LDC2013T13"},"http://catalog.ldc.upenn.edu/LDC2013T13"]
["Chinese Treebank 6.0 (CTB6.0)","LDC2007T36","http://www.ldc.upenn.edu/Catalog/CatalogEntry.jsp?catalogId=LDC2007T36"]
["Chinese Treebank 7.0","LDC2010T07","http://www.ldc.upenn.edu/Catalog/CatalogEntry.jsp?catalogId=LDC2010T07"]
["Chinese Treebank 8.0","LDC2013T21","http://catalog.ldc.upenn.edu/LDC2013T21"]
["Chinese Treebank 9.0","LDC2016T13","http://www.ldc.upenn.edu/Catalog/CatalogEntry.jsp?catalogId=LDC2016T13"]
["Chinese Web 5-gram Version 1","LDC2010T06","http://www.ldc.upenn.edu/Catalog/CatalogEntry.jsp?catalogId=LDC2010T06"]
["Chinese-English Biology and Chemistry Abstract Parallel Text","LDC2013T02","http://www.ldc.upenn.edu/Catalog/catalogEntry.jsp?catalogId=LDC2013T02"]
["Chinese-English Semiconductor Parallel Text","LDC2012T22","http://www.ldc.upenn.edu/Catalog/catalogEntry.jsp?catalogId=LDC2012T22"]
["CHM150","LDC2016S04","http://www.ldc.upenn.edu/Catalog/CatalogEntry.jsp?catalogId=LDC2016S04"]
["CIEMPIESS Balance",{"$f":"RIGHT(C145,10)","v":"LDC2018S11"},"https://catalog.ldc.upenn.edu/LDC2018S11"]
["CIEMPIESS Balance",{"$f":"RIGHT(C146,10)","v":"LDC2018S11"},"https://catalog.ldc.upenn.edu/LDC2018S11"]
["CIEMPIESS Experimentation","LDC2019S07","https://catalog.ldc.upenn.edu/LDC2019S07"]
["CIEMPIESS Light","LDC2017S23","https://catalog.ldc.upenn.edu/LDC2017S23"]
["Classical Arabic Dictionary\n","LDC2021L01","https://catalog.ldc.upenn.edu/LDC2021l01"]
["Columbia Games Corpus","LDC2021S02","https://catalog.ldc.upenn.edu/LDC2021S02"]
["Concretely Annotated English Gigaword",{"$f":"RIGHT(C151,10)","v":"LDC2018T20"},"https://catalog.ldc.upenn.edu/LDC2018T20"]
["Concretely Annotated New York Times",{"$f":"RIGHT(C152,10)","v":"LDC2018T12"},"https://catalog.ldc.upenn.edu/LDC2018T12"]
["Corpus of Conversational Persian Transcripts","LDC2019T11","https://catalog.ldc.upenn.edu/LDC2019T11"]
["Corpus of Law, Academic, and News","LDC2020T23","https://catalog.ldc.upenn.edu/LDC2020T23"]
["Czech Broadcast Conversation MDE Transcripts","LDC2009T20","http://www.ldc.upenn.edu/Catalog/CatalogEntry.jsp?catalogId=LDC2009T20"]
["Czech Broadcast Conversation Speech","LDC2009S02","http://www.ldc.upenn.edu/Catalog/CatalogEntry.jsp?catalogId=LDC2009S02"]
["Czech Broadcast News MDE Transcripts","LDC2010T02","http://www.ldc.upenn.edu/Catalog/CatalogEntry.jsp?catalogId=LDC2010T02"]
["Datasets for Generic Relation Extraction (reACE)","LDC2011T08","http://www.ldc.upenn.edu/Catalog/CatalogEntry.jsp?catalogId=LDC2011T08"]
["DEFT Chinese Committed Belief Annotation","LDC2019T03","https://catalog.ldc.upenn.edu/LDC2019T03"]
["DEFT English Committed Belief Annotation","LDC2019T16","https://catalog.ldc.upenn.edu/LDC2019T16"]
["DEFT English Committed Belief Annotation","LDC2019T16","https://catalog.ldc.upenn.edu/LDC2019T16"]
["DEFT Narrative Text","LDC2016T07","http://www.ldc.upenn.edu/Catalog/CatalogEntry.jsp?catalogId=LDC2016T07"]
["DEFT Spanish Committed Belief Annotation","LDC2019T09","https://catalog.ldc.upenn.edu/LDC2019T09"]
["DEFT Spanish Treebank","LDC2018T01","https://catalog.ldc.upenn.edu/LDC2018T01"]
["Digital Archive of Southern Speech","LDC2012S03","http://www.ldc.upenn.edu/Catalog/CatalogEntry.jsp?catalogId=LDC2012S03"]
["Digital Archive of Southern Speech NLP Version","LDC2016S05","http://www.ldc.upenn.edu/Catalog/CatalogEntry.jsp?catalogId=LDC2016S05"]
["Domain-Specific Hyponym Relations",{"$f":"RIGHT(C167,10)","v":"LDC2014T07"},"http://www.ldc.upenn.edu/Catalog/CatalogEntry.jsp?catalogId=LDC2014T07"]
["Emotional Prosody Speech and Transcripts","LDC2002S28","http://www.ldc.upenn.edu/Catalog/CatalogEntry.jsp?catalogId=LDC2002S28"]
["English Chinese Translation Treebank v1.0","LDC2007T02","http://www.ldc.upenn.edu/Catalog/CatalogEntry.jsp?catalogId=LDC2007T02"]
["English CTS Treebank with Structural Metadata","LDC2009T01","http://www.ldc.upenn.edu/Catalog/CatalogEntry.jsp?catalogId=LDC2009T01"]
["English Gigaword Fifth Edition","LDC2011T07","http://www.ldc.upenn.edu/Catalog/CatalogEntry.jsp?catalogId=LDC2011T07"]
["English Gigaword Fifth Edition (copy)","LDC2011T07","http://www.ldc.upenn.edu/Catalog/CatalogEntry.jsp?catalogId=LDC2011T07"]
["English Gigaword Fourth Edition","LDC2009T13","http://www.ldc.upenn.edu/Catalog/CatalogEntry.jsp?catalogId=LDC2009T13"]
["English Gigaword Third Edition","LDC2007T07","http://www.ldc.upenn.edu/Catalog/CatalogEntry.jsp?catalogId=LDC2007T07"]
["English News Text Treebank: Penn Treebank Revised","LDC2015T13","http://www.ldc.upenn.edu/Catalog/CatalogEntry.jsp?catalogId=LDC2015T13"]
["English Speed Networking Conversational Transcripts","LDC2016T16","http://www.ldc.upenn.edu/Catalog/CatalogEntry.jsp?catalogId=LDC2016T16"]
["English Translation Treebank: An-Nahar Newswire","LDC2012T02","http://www.ldc.upenn.edu/Catalog/CatalogEntry.jsp?catalogId=LDC2012T02"]
["English Web Treebank","LDC2012T13","http://www.ldc.upenn.edu/Catalog/catalogEntry.jsp?catalogId=LDC2012T13"]
["English Web Treebank Propbank","LDC2017T15","https://catalog.ldc.upenn.edu/LDC2017T15"]
["ESPADA","LDC2021T10","https://catalog.ldc.upenn.edu/LDC2021T10"]
["EVALution","LDC2020T06","https://catalog.ldc.upenn.edu/LDC2020T06"]
["FactBank 1.0","LDC2009T23","http://www.ldc.upenn.edu/Catalog/CatalogEntry.jsp?catalogId=LDC2009T23"]
["First DIHARD Challenge Development - Eight Sources","LDC2019S09","https://catalog.ldc.upenn.edu/LDC2019S09"]
["First DIHARD Challenge Evaluation - Nine Sources","LDC2019S12","https://catalog.ldc.upenn.edu/LDC2019S12"]
["Fisher and CALLHOME Spanish-English Speech Translation",{"$f":"RIGHT(C185,10)","v":"LDC2014T23"},"http://www.ldc.upenn.edu/Catalog/CatalogEntry.jsp?catalogId=LDC2014T23"]
["Fisher Levantine Arabic Conversational Telephone Speech","LDC2007S02","http://www.ldc.upenn.edu/Catalog/CatalogEntry.jsp?catalogId=LDC2007S02"]
["Fisher Levantine Arabic Conversational Telephone Speech Transcripts","LDC2007T04","http://www.ldc.upenn.edu/Catalog/CatalogEntry.jsp?catalogId=LDC2007T04"]
["Fisher Spanish - Speech","LDC2010S01","http://www.ldc.upenn.edu/Catalog/CatalogEntry.jsp?catalogId=LDC2010S01"]
["Fisher Spanish - Transcripts","LDC2010T04","http://www.ldc.upenn.edu/Catalog/CatalogEntry.jsp?catalogId=LDC2010T04"]
["French Gigaword Second Edition","LDC2009T28","http://www.ldc.upenn.edu/Catalog/CatalogEntry.jsp?catalogId=LDC2009T28"]
["French Gigaword Third Edition","LDC2011T10","http://www.ldc.upenn.edu/Catalog/CatalogEntry.jsp?catalogId=LDC2011T10"]
["GALE Arabic-English Parallel Aligned Treebank - Broadcast News Part 1",{"$f":"RIGHT(C192,10)","v":"LDC2013T14"},"http://catalog.ldc.upenn.edu/LDC2013T14"]
["GALE Arabic-English Parallel Aligned Treebank - Newswire Training","LDC2013T10","http://www.ldc.upenn.edu/Catalog/CatalogEntry.jsp?catalogId=LDC2013T10"]
["GALE Arabic-English Parallel Aligned Treebank Broadcast News Part 2",{"$f":"RIGHT(C194,10)","v":"LDC2014T03"},"http://www.ldc.upenn.edu/Catalog/CatalogEntry.jsp?catalogId=LDC2014T03"]
["GALE Arabic-English Parallel Aligned Treebank Web Training",{"$f":"RIGHT(C195,10)","v":"LDC2014T08"},"http://www.ldc.upenn.edu/Catalog/CatalogEntry.jsp?catalogId=LDC2014T08"]
["GALE Arabic-English Word Alignment Broadcast Training Part 1","LDC2014T19","http://www.ldc.upenn.edu/Catalog/CatalogEntry.jsp?catalogId=LDC2014T19"]
["GALE Arabic-English Word Alignment Broadcast Training Part 2","LDC2014T22","http://www.ldc.upenn.edu/Catalog/CatalogEntry.jsp?catalogId=LDC2014T22"]
["GALE Arabic-English Word Alignment Training Part 1 Newswire and Web","LDC2014T05","http://www.ldc.upenn.edu/Catalog/CatalogEntry.jsp?catalogId=LDC2014T05"]
["GALE Arabic-English Word Alignment Training Part 2 Newswire","LDC2014T10","http://www.ldc.upenn.edu/Catalog/CatalogEntry.jsp?catalogId=LDC2014T10"]
["GALE Arabic-English Word Alignment Training Part 3 -- Web","LDC2014T14","http://www.ldc.upenn.edu/Catalog/CatalogEntry.jsp?catalogId=LDC2014T14"]
["GALE Chinese-English Word Alignment and Tagging Broadcast Training Part 2","LDC2014T25","http://www.ldc.upenn.edu/Catalog/CatalogEntry.jsp?catalogId=LDC2014T25"]
["GALE Chinese-English Word Alignment and Tagging Training Part 1 -- Newswire and Web","LDC2012T16","http://www.ldc.upenn.edu/Catalog/catalogEntry.jsp?catalogId=LDC2012T16"]
["GALE Chinese-English Word Alignment and Tagging Training Part 3 -- Web","LDC2012T24","http://www.ldc.upenn.edu/Catalog/catalogEntry.jsp?catalogId=LDC2012T24"]
["GALE English-Chinese Parallel Aligned Treebank Training","LDC2017T06","http://www.ldc.upenn.edu/Catalog/catalogEntry.jsp?catalogId=LDC2017T06"]
["GALE Phase 1 Arabic Broadcast News Parallel Text - Part 1","LDC2007T24","http://www.ldc.upenn.edu/Catalog/CatalogEntry.jsp?catalogId=LDC2007T24"]
["GALE Phase 1 Arabic Broadcast News Parallel Text Part 2","LDC2008T09 ","http://www.ldc.upenn.edu/Catalog/CatalogEntry.jsp?catalogId=LDC2008T09 "]
["GALE Phase 1 Arabic Newsgroup Parallel Text - Part 1","LDC2009T03","http://www.ldc.upenn.edu/Catalog/CatalogEntry.jsp?catalogId=LDC2009T03"]
["GALE Phase 1 Arabic Newsgroup Parallel Text - Part 2","LDC2009T09","http://www.ldc.upenn.edu/Catalog/CatalogEntry.jsp?catalogId=LDC2009T09"]
["GALE Phase 1 Chinese Blog Parallel Text","LDC2008T06","http://www.ldc.upenn.edu/Catalog/CatalogEntry.jsp?catalogId=LDC2008T06"]
["GALE Phase 1 Chinese Broadcast Conversation Parallel Text - Part 1","LDC2009T02","http://www.ldc.upenn.edu/Catalog/CatalogEntry.jsp?catalogId=LDC2009T02"]
["GALE Phase 1 Chinese Broadcast News Parallel Text Part 2","LDC2008T08 ","http://www.ldc.upenn.edu/Catalog/CatalogEntry.jsp?catalogId=LDC2008T08 "]
["GALE Phase 1 Chinese Newsgroup Parallel Text - Part 1","LDC2009T15","http://www.ldc.upenn.edu/Catalog/CatalogEntry.jsp?catalogId=LDC2009T15"]
["GALE Phase 1 Chinese Newsgroup Parallel Text - Part 2","LDC2010T03","http://www.ldc.upenn.edu/Catalog/CatalogEntry.jsp?catalogId=LDC2010T03"]
["GALE Phase 1 Distillation Training","LDC2007T20 ","http://www.ldc.upenn.edu/Catalog/CatalogEntry.jsp?catalogId=LDC2007T20 "]
["GALE Phase 2 Arabic Broadcast Conversation Parallel Text Part 1","LDC2012T06","http://www.ldc.upenn.edu/Catalog/CatalogEntry.jsp?catalogId=LDC2012T06"]
["GALE Phase 2 Arabic Broadcast Conversation Parallel Text Part 2","LDC2012T14","http://www.ldc.upenn.edu/Catalog/catalogEntry.jsp?catalogId=LDC2012T14"]
["GALE Phase 2 Arabic Broadcast Conversation Speech Part 1","LDC2013S02","http://www.ldc.upenn.edu/Catalog/catalogEntry.jsp?catalogId=LDC2013S02"]
["GALE Phase 2 Arabic Broadcast Conversation Speech Part 2",{"$f":"RIGHT(C218,10)","v":"LDC2013S07"},"http://catalog.ldc.upenn.edu/LDC2013S07"]
["GALE Phase 2 Arabic Broadcast Conversation Transcripts - Part 1","LDC2013T04","http://www.ldc.upenn.edu/Catalog/catalogEntry.jsp?catalogId=LDC2013T04"]
["GALE Phase 2 Arabic Broadcast Conversation Transcripts Part 2",{"$f":"RIGHT(C220,10)","v":"LDC2013T17"},"http://catalog.ldc.upenn.edu/LDC2013T17"]
["GALE Phase 2 Arabic Broadcast News Speech Part 1",{"$f":"RIGHT(C221,10)","v":"LDC2014S07"},"http://www.ldc.upenn.edu/Catalog/CatalogEntry.jsp?catalogId=LDC2014S07"]
["GALE Phase 2 Arabic Broadcast News Transcripts Part 1","LDC2014T17","http://www.ldc.upenn.edu/Catalog/CatalogEntry.jsp?catalogId=LDC2014T17"]
["GALE Phase 2 Arabic Newswire Parallel Text","LDC2012T17","http://www.ldc.upenn.edu/Catalog/catalogEntry.jsp?catalogId=LDC2012T17"]
["GALE Phase 2 Arabic Web Parallel Text","LDC2013T01","http://www.ldc.upenn.edu/Catalog/catalogEntry.jsp?catalogId=LDC2013T01"]
["GALE Phase 2 Chinese Broadcast Conversion Parallel Text Part 1",{"$f":"RIGHT(C225,10)","v":"LDC2013T11"},"http://catalog.ldc.upenn.edu/LDC2013T11"]
["GALE Phase 2 Chinese Broadcast Conversion Parallel Text Part 2",{"$f":"RIGHT(C226,10)","v":"LDC2013T16"},"http://catalog.ldc.upenn.edu/LDC2013T16"]
["GALE Phase 2 Chinese Broadcast News Parallel Text Part 1","LDC2014T04","http://www.ldc.upenn.edu/Catalog/CatalogEntry.jsp?catalogId=LDC2014T04"]
["GALE Phase 2 Chinese Broadcast News Parallel Text Part 2","LDC2014T11","http://www.ldc.upenn.edu/Catalog/CatalogEntry.jsp?catalogId=LDC2014T11"]
["GALE Phase 2 Chinese Broadcast News Speech","LDC2013S08","http://catalog.ldc.upenn.edu/LDC2013S08"]
["GALE Phase 2 Chinese Broadcast News Transcripts","LDC2013T20","http://catalog.ldc.upenn.edu/LDC2013T20"]
["GALE Phase 2 Chinese Newswire Parallel Text Part 1","LDC2014T15","http://www.ldc.upenn.edu/Catalog/CatalogEntry.jsp?catalogId=LDC2014T15"]
["GALE Phase 2 Chinese Newswire Parallel Text Part 2","LDC2014T20","http://www.ldc.upenn.edu/Catalog/CatalogEntry.jsp?catalogId=LDC2014T20"]
["GALE Phase 2 Chinese Web Parallel Text","LDC2014T26","http://www.ldc.upenn.edu/Catalog/CatalogEntry.jsp?catalogId=LDC2014T26"]
["GALE Phase 3 and 4 Arabic Web Parallel Text","LDC2016T08","http://www.ldc.upenn.edu/Catalog/CatalogEntry.jsp?catalogId=LDC2016t08"]
["GALE Phase 3 and 4 Chinese Broadcast Conversation Parallel Text","LDC2016T09","http://www.ldc.upenn.edu/Catalog/CatalogEntry.jsp?catalogId=LDC2016T09"]
["GALE Phase 3 and 4 Chinese Broadcast News Parallel Text","LDC2016T15","http://www.ldc.upenn.edu/Catalog/CatalogEntry.jsp?catalogId=LDC2016T15"]
["GALE Phase 3 and 4 Chinese Newswire Parallel Text","LDC2016T25","https://catalog.ldc.upenn.edu/LDC2016T25"]
["GALE Phase 3 and 4 Chinese Web Parallel Text","LDC2017T02","https://catalog.ldc.upenn.edu/LDC2017T02"]
["GALE Phase 3 Arabic Broadcast Conversation Speech Part 1","LDC2015S11","http://www.ldc.upenn.edu/Catalog/CatalogEntry.jsp?catalogId=LDC2015S11"]
["GALE Phase 3 Arabic Broadcast Conversation Speech Part 2","LDC2016S01","http://www.ldc.upenn.edu/Catalog/CatalogEntry.jsp?catalogId=LDC2016S01"]
["GALE Phase 3 Arabic Broadcast Conversation Transcripts Part 1","LDC2015T16","http://www.ldc.upenn.edu/Catalog/CatalogEntry.jsp?catalogId=LDC2015T16"]
["GALE Phase 3 Arabic Broadcast Conversation Transcripts Part 2","LDC2016T06","http://www.ldc.upenn.edu/Catalog/CatalogEntry.jsp?catalogId=LDC2016T06"]
["GALE Phase 3 Arabic Broadcast News Speech Part 1","LDC2016S07","http://www.ldc.upenn.edu/Catalog/CatalogEntry.jsp?catalogId=LDC2016S07"]
["GALE Phase 3 Arabic Broadcast News Speech Part 2","LDC2017S02","http://www.ldc.upenn.edu/Catalog/CatalogEntry.jsp?catalogId=LDC2017S02"]
["GALE Phase 3 Arabic Broadcast News Transcripts Part 1","LDC2016T17","http://www.ldc.upenn.edu/Catalog/CatalogEntry.jsp?catalogId=LDC2016T17"]
["GALE Phase 3 Arabic Broadcast News Transcripts Part 2","LDC2017T04","http://www.ldc.upenn.edu/Catalog/CatalogEntry.jsp?catalogId=LDC2016T04"]
["GALE Phase 3 Chinese Broadcast Conversation Speech Part 1","LDC2014S09","http://www.ldc.upenn.edu/Catalog/CatalogEntry.jsp?catalogId=LDC2014S09"]
["GALE Phase 3 Chinese Broadcast Conversation Transcripts Part 1","LDC2014T28","http://www.ldc.upenn.edu/Catalog/CatalogEntry.jsp?catalogId=LDC2014T28"]
["GALE Phase 4 Arabic Broadcast Conversation Parallel Sentences","LDC2016T11","http://www.ldc.upenn.edu/Catalog/CatalogEntry.jsp?catalogId=LDC2016T11"]
["GALE Phase 4 Arabic Broadcast Conversation Speech","LDC2017S15","https://catalog.ldc.upenn.edu/LDC2017S15"]
["GALE Phase 4 Arabic Broadcast Conversation Transcripts","LDC2017T12","https://catalog.ldc.upenn.edu/LDC2017T12"]
["GALE Phase 4 Arabic Broadcast News Parallel Sentences","LDC2016T20","http://www.ldc.upenn.edu/Catalog/CatalogEntry.jsp?catalogId=LDC2016T20"]
["GALE Phase 4 Arabic Broadcast News Speech","LDC2018S05","https://catalog.ldc.upenn.edu/LDC2018S05"]
["GALE Phase 4 Arabic Newswire Parallel Sentences","LDC2016T27","https://catalog.ldc.upenn.edu/LDC2016T27"]
["GALE Phase 4 Arabic Weblog Parallel Sentences","LDC2016T14","http://www.ldc.upenn.edu/Catalog/CatalogEntry.jsp?catalogId=LDC2016T14"]
["GALE Phase 4 Chinese Broadcast Conversation Speech","LDC2016S03","http://www.ldc.upenn.edu/Catalog/CatalogEntry.jsp?catalogId=LDC2016S03"]
["GALE Phase 4 Chinese Broadcast Conversation Transcripts","LDC2016T12","http://www.ldc.upenn.edu/Catalog/CatalogEntry.jsp?catalogId=LDC2016T12"]
["GALE Phase 4 Chinese Broadcast News Speech","LDC2017S25","https://catalog.ldc.upenn.edu/LDC2017S25"]
["GALE Phase 4 Chinese Broadcast News Transcripts","LDC2017T18","https://catalog.ldc.upenn.edu/LDC2017T18"]
["GALE Phase 4 Chinese Newswire Parallel Sentences","LDC2015T24","http://www.ldc.upenn.edu/Catalog/CatalogEntry.jsp?catalogId=LDC2015T24"]
["GALE Phase 4 Chinese Weblog Parallel Sentences","LDC2016T04","http://www.ldc.upenn.edu/Catalog/CatalogEntry.jsp?catalogId=LDC2016T04"]
["Global TIMIT Learner Simple English","LDC2020S11","https://catalog.ldc.upenn.edu/LDC2020S11"]
["Global TIMIT Learner Treebank English","LDC2020S09","https://catalog.ldc.upenn.edu/LDC2020S09"]
["Global TIMIT Mandarin Chinese","LDC2021S03","https://catalog.ldc.upenn.edu/LDC2021S03"]
["Global TIMIT Mandarin Chinese-Guanzhong Dialect","LDC2020S12","https://catalog.ldc.upenn.edu/LDC2020S12"]
["Global Yoruba Lexical Database v. 1.0","LDC2008L03","http://www.ldc.upenn.edu/Catalog/CatalogEntry.jsp?catalogId=LDC2008L03"]
["Greybeard",{"$f":"RIGHT(C267,10)","v":"LDC2013S05"},"http://catalog.ldc.upenn.edu/LDC2013S05"]
["H1 Children's Writing","LDC2016T01","http://www.ldc.upenn.edu/Catalog/CatalogEntry.jsp?catalogId=LDC2016T01"]
["H2, E2, ERK1 Children's Writing",{"$f":"RIGHT(C269,10)","v":"LDC2018T05"},"https://catalog.ldc.upenn.edu/LDC2018T05"]
["HAVIC MED Event E051-E060 -- Videos, Metadata and Annotation",{"$f":"RIGHT(C270,10)","v":"LDC2018V01"},"https://catalog.ldc.upenn.edu/LDC2018V01"]
["HAVIC MED Novel 1 Test -- Videos, Metadata and Annotation","LDC2022V01","https://catalog.ldc.upenn.edu/LDC2022V01"]
["HAVIC MED Progress Test -- Videos, Metadata and Annotation",{"$f":"RIGHT(C272,10)","v":"LDC2019V01"},"https://catalog.ldc.upenn.edu/LDC2019V01"]
["HAVIC Pilot Transcription","LDC2016V01","http://www.ldc.upenn.edu/Catalog/CatalogEntry.jsp?catalogId=LDC2016V01"]
["Hispanic-English Database","LDC2014S05","http://www.ldc.upenn.edu/Catalog/CatalogEntry.jsp?catalogId=LDC2014S05"]
["HUB5 Mandarin Telephone Speech and Transcripts Second Edition","LDC2018S18","https://catalog.ldc.upenn.edu/LDC2018S18"]
["HyTER Networks of Selected OpenMT08/09 Sentences","LDC2014T09","http://www.ldc.upenn.edu/Catalog/CatalogEntry.jsp?catalogId=LDC2014T09"]
["IARPA Babel Assarnese Language Pack IARPA-babel102b-v0.5a","LDC2016S06","http://www.ldc.upenn.edu/Catalog/CatalogEntry.jsp?catalogId=LDC2016S06"]
["IARPA Babel Bengali Language Pack IARPA-babel103b-v0.4b","LDC2016S08","http://www.ldc.upenn.edu/Catalog/CatalogEntry.jsp?catalogId=LDC2016S08"]
["IARPA Babel Cantonese Language Pack IARPA-babel101b-v0.4c","LDC2016S02","http://www.ldc.upenn.edu/Catalog/CatalogEntry.jsp?catalogId=LDC2016S02"]
["IARPA Babel Georgian Language Pack IARPA-babel404b-v1.0a","LDC2016S12","https://catalog.ldc.upenn.edu/LDC2016S12"]
["IARPA Babel Guarani Language Pack IARPA-babel305b-v1.0c","LDC2019S08","https://catalog.ldc.upenn.edu/LDC2019S08"]
["IARPA Babel Kurmanji Kurdish Language Pack IARPA-babel205b-v1.0a","LDC2017S22","https://catalog.ldc.upenn.edu/LDC2017S22"]
["IARPA Babel Lithuanian Language Pack IARPA-babel304b-v1.0b","LDC2019S03","https://catalog.ldc.upenn.edu/LDC2019S03"]
["IARPA Babel Mongolian Language Pack IARPA-babel401b-v2.0b","LDC2020S10","https://catalog.ldc.upenn.edu/LDC2020S10"]
["IARPA Babel Pashto Language Pack IARPA-babel104b-v0.4bY","LDC2016S09","http://www.ldc.upenn.edu/Catalog/CatalogEntry.jsp?catalogId=LDC2016S09"]
["IARPA Babel Tagalog Language Pack IARPA-babel106-v0.2g","LDC2016S13","https://catalog.ldc.upenn.edu/LDC2016S13"]
["IARPA Babel Turkish Language Pack  IARPA-babel105b-v0.5","LDC2016S10","https://catalog.ldc.upenn.edu/LDC2016S10"]
["ISI Arabic-English Automatically Extracted Parallel Text","LDC2007T08","http://www.ldc.upenn.edu/Catalog/CatalogEntry.jsp?catalogId=LDC2007T08"]
["ISI Chinese-English Automatically Extracted Parallel Text","LDC2007T09","http://www.ldc.upenn.edu/Catalog/CatalogEntry.jsp?catalogId=LDC2007T09"]
["Japanese Business News Text","LDC95T8","http://www.ldc.upenn.edu/Catalog/CatalogEntry.jsp?catalogId=LDC95T8"]
["KAFD Arabic Font Database","LDC2016T21","https://catalog.ldc.upenn.edu/LDC2016T21"]
["Korean Newswire Second Edition","LDC2010T19","http://www.ldc.upenn.edu/Catalog/CatalogEntry.jsp?catalogId=LDC2010T19"]
["Korean Telephone Conversations Speech","LDC2003S03","http://www.ldc.upenn.edu/Catalog/CatalogEntry.jsp?catalogId=LDC2003S03"]
["KSUEmotions","LDC2017S12","https://catalog.ldc.upenn.edu/LDC2017S12"]
["Levantine Arabic Conversational Telephone Speech","LDC2007S01","http://www.ldc.upenn.edu/Catalog/CatalogEntry.jsp?catalogId=LDC2007S01"]
["Levantine Arabic Conversational Telephone Speech Transcripts","LDC2007T01","http://www.ldc.upenn.edu/Catalog/CatalogEntry.jsp?catalogId=LDC2007T01"]
["LibriVox Spanish","LDC2020S01","https://catalog.ldc.upenn.edu/LDC2020S01"]
["LORELEI Akan Representative Language Pack","LDC2021T02","https://catalog.ldc.upenn.edu/LDC2021T02"]
["LORELEI Amharic Representative Language Pack - Monolingual and Parallel Text",{"$f":"RIGHT(C299,10)","v":"LDC2018T04"},"https://catalog.ldc.upenn.edu/LDC2018T04"]
["LORELEI Bengali Representative Language Pack","LDC2022T05","https://catalog.ldc.upenn.edu/LDC2022T05"]
["LORELEI Entity Detection and Linking Knowledge Base","LDC2020T10","https://catalog.ldc.upenn.edu/LDC2020T10"]
["LORELEI Kinyarwanda Incident Language Pack","LDC2022T01","https://catalog.ldc.upenn.edu/LDC2022T01"]
["LORELEI Oromo Incident Language Pack","LDC2020T11","https://catalog.ldc.upenn.edu/LDC2020T11"]
["LORELEI Somali Representative Language Pack - Monolingual and Parallel Text","LDC2018T11","https://catalog.ldc.upenn.edu/LDC2018T11"]
["LORELEI Tigrinya Incident Language Pack","LDC2020T22","https://catalog.ldc.upenn.edu/LDC2020T22"]
["LORELEI Ukrainian Representative Language Pack","LDC2020T24","https://catalog.ldc.upenn.edu/LDC2020T24"]
["LORELEI Ukrainian Representative Language Pack","LDC2020T24","https://catalog.ldc.upenn.edu/LDC2020T24"]
["LORELEI Wolof Representative Language Pack","LDC2022T03","https://catalog.ldc.upenn.edu/LDC2022T03"]
["Machine Reading Phase 1 IC Training Data","LDC2020T04","https://catalog.ldc.upenn.edu/LDC2020T04"]
["Machine Reading Phase 1 NFL Scoring Training Data","LDC2019T14","https://catalog.ldc.upenn.edu/LDC2019T14"]
["MADCAT Chinese Pilot Training Set","LDC2014T13","http://www.ldc.upenn.edu/Catalog/CatalogEntry.jsp?catalogId=LDC2014T13"]
["MADCAT Phase 2 Training Set","LDC2013T09","http://www.ldc.upenn.edu/Catalog/CatalogEntry.jsp?catalogId=LDC2013T09"]
["MADCAT Phase 3 Training Set","LDC2013T15","http://catalog.ldc.upenn.edu/LDC2013T15"]
["Magic Data Chinese Mandarin Conversational Speech","LDC2019S23","https://catalog.ldc.upenn.edu/LDC2019S23"]
["Malto Speech and Transcripts","LDC2012S04","http://www.ldc.upenn.edu/Catalog/CatalogEntry.jsp?catalogId=LDC2012S04"]
["Manually Annotated Sub-Corpus First Release","LDC2010T22","http://www.ldc.upenn.edu/Catalog/CatalogEntry.jsp?catalogId=LDC2010T22"]
["Manually Annotated Sub-Corpus Third Release",{"$f":"RIGHT(C317,10)","v":"LDC2013T12"},"http://catalog.ldc.upenn.edu/LDC2013T12"]
["Message Understanding Conference 7 Timed (MUC7_T)","LDC2010T15","http://www.ldc.upenn.edu/Catalog/CatalogEntry.jsp?catalogId=LDC2010T15"]
["Metalogue Multi-Issue Bargaining Dialogue","LDC2017S11","https://catalog.ldc.upenn.edu/LDC2017S11"]
["Mixer 4 and 5 Speech","LDC2020S03","https://catalog.ldc.upenn.edu/LDC2020S03"]
["Mixer 6",{"$f":"RIGHT(C321,10)","v":"LDC2013S03"},"http://catalog.ldc.upenn.edu/LDC2013S03"]
["ModeS TimeBank 1.0","LDC2012T01","http://www.ldc.upenn.edu/Catalog/CatalogEntry.jsp?catalogId=LDC2012T01"]
["Multi-Language Conversational Telephone Speech 2011 -- Arabic Group","LDC2019S02","https://catalog.ldc.upenn.edu/LDC2019S02"]
["Multi-Language Conversational Telephone Speech 2011 -- Central Asian",{"$f":"RIGHT(C324,10)","v":"LDC2018s03"},"https://catalog.ldc.upenn.edu/LDC2018s03"]
["Multi-Language Conversational Telephone Speech 2011 -- Central European",{"$f":"RIGHT(C325,10)","v":"LDC2018S08"},"https://catalog.ldc.upenn.edu/LDC2018S08"]
["Multi-Language Conversational Telephone Speech 2011 -- Central European",{"$f":"RIGHT(C326,10)","v":"LDC2018S08"},"https://catalog.ldc.upenn.edu/LDC2018S08"]
["Multi-Language Conversational Telephone Speech 2011 -- East Asian","LDC2019S15","https://catalog.ldc.upenn.edu/LDC2019S15"]
["Multi-Language Conversational Telephone Speech 2011 -- English Group","LDC2019S06","https://catalog.ldc.upenn.edu/LDC2019S06"]
["Multi-Language Conversational Telephone Speech 2011 -- Mandarin Chinese","LDC2020S05","https://catalog.ldc.upenn.edu/LDC2020S05"]
["Multi-Language Conversational Telephone Speech 2011 -- South Asian","LDC2017S14","https://catalog.ldc.upenn.edu/LDC2017S14"]
["Multi-Language Conversational Telephone Speech 2011 -- Spanish",{"$f":"RIGHT(C331,10)","v":"LDC2018S12"},"https://catalog.ldc.upenn.edu/LDC2018S12"]
["Multi-Language Conversational Telephone Speech 2011 -- Turkish","LDC2017S09","https://catalog.ldc.upenn.edu/LDC2017S09"]
["Multi-Language Coversational Telephone Speech 2011 Slavic Group","LDC2016S11","https://catalog.ldc.upenn.edu/LDC2016S11"]
["Multilingual ATlS","LDC2019T04","https://catalog.ldc.upenn.edu/LDC2019T04"]
["Multilingual Automatic Document Classification Analysis and Translation (MADCAT) Phase 1 Training","LDC2012T15","http://www.ldc.upenn.edu/Catalog/catalogEntry.jsp?catalogId=LDC2012T15"]
["MWE-Aware English Dependency Corpus","LDC2017T01","https://catalog.ldc.upenn.edu/LDC2017T01"]
["MWE-Aware English Dependency Corpus 2.0","LDC2017T16","https://catalog.ldc.upenn.edu/LDC2017T16"]
["Nautilus Speaker Characterization","LDC2018S17","https://catalog.ldc.upenn.edu/LDC2018S17"]
["NewSoMe Corpus of Opinion in Blogs","LDC2016T03","http://www.ldc.upenn.edu/Catalog/CatalogEntry.jsp?catalogId=LDC2016T03"]
["NIST 2002 Open Machine Translation","LDC2010T10","http://www.ldc.upenn.edu/Catalog/CatalogEntry.jsp?catalogId=LDC2010T10"]
["NIST 2003 Open Machine Translation (OpenMT) Evaluation","LDC2010T11","http://www.ldc.upenn.edu/Catalog/CatalogEntry.jsp?catalogId=LDC2010T11"]
["NIST 2004 Open Machine Translation (OpenMT) Evaluation","LDC2010T12","http://www.ldc.upenn.edu/Catalog/CatalogEntry.jsp?catalogId=LDC2010T12"]
["NIST 2005 Open Machine Translation (OpenMT) Evaluation","LDC2010T14","http://www.ldc.upenn.edu/Catalog/CatalogEntry.jsp?catalogId=LDC2010T14"]
["NIST 2006 Open Machine Translation (OpenMT) Evaluation","LDC2010T17","http://www.ldc.upenn.edu/Catalog/CatalogEntry.jsp?catalogId=LDC2010T17"]
["NIST 2008 Open Machine Translation (OpenMT) Evaluation","LDC2010T21","http://www.ldc.upenn.edu/Catalog/CatalogEntry.jsp?catalogId=LDC2010T21"]
["NIST 2009 Open Machine Translation (OpenMT) Evaluation","LDC2010T23","http://www.ldc.upenn.edu/Catalog/CatalogEntry.jsp?catalogId=LDC2010T23"]
["NIST 2012 Open Machine Translation (OpenMT) Progress Test Five Language Source","LDC2014T02","http://www.ldc.upenn.edu/Catalog/CatalogEntry.jsp?catalogId=LDC2014T02"]
["NIST Open Machine Translation (OpenMT) 2012 Current Test","LDC2013T03","http://www.ldc.upenn.edu/Catalog/CatalogEntry.jsp?catalogId=LDC2013T03"]
["NIST Open Machine Translation 2008 Evaluation Selected Reference and System Translations","LDC2010T01","http://www.ldc.upenn.edu/Catalog/CatalogEntry.jsp?catalogId=LDC2010T01"]
["NIST/USF Evaluation Resources for the VACE Program - Meeting Data Test Set Part 2","LDC2011V04","http://www.ldc.upenn.edu/Catalog/CatalogEntry.jsp?catalogId=LDC2011V04"]
["NIST/USF Evaluation Resources for the VACE Program - Meeting Data Training Set Part 1","LDC2011V01","http://www.ldc.upenn.edu/Catalog/CatalogEntry.jsp?catalogId=LDC2011V01"]
["NIST/USF Evaluation Resources for the VACE Program - Meeting Data Training Set Part 2","LDC2011V02","http://www.ldc.upenn.edu/Catalog/CatalogEntry.jsp?catalogId=LDC2011V02"]
["NIST/USF Evaluation Resources for the VACE Program Meeting Data Test Set Part 1","LDC2011V03","http://www.ldc.upenn.edu/Catalog/CatalogEntry.jsp?catalogId=LDC2011V03"]
["Noisy TIMIT Speech (flash drive)","LDC2017S04","http://www.ldc.upenn.edu/Catalog/catalogEntry.jsp?catalogId=LDC2017S04"]
["NPS Internet Chatroom Conversations, Release 1.0","LDC2010T05","http://www.ldc.upenn.edu/Catalog/CatalogEntry.jsp?catalogId=LDC2010T05"]
["NUBUC","LDC2022S04","https://catalog.ldc.upenn.edu/LDC2022S04"]
["NXT Switchboard Annotations","LDC2009T26","http://www.ldc.upenn.edu/Catalog/CatalogEntry.jsp?catalogId=LDC2009T26"]
["OntoNotes Release 2.0","LDC2008T04","http://www.ldc.upenn.edu/Catalog/CatalogEntry.jsp?catalogId=LDC2008T04"]
["OntoNotes Release 3.0","LDC2009T24","http://www.ldc.upenn.edu/Catalog/CatalogEntry.jsp?catalogId=LDC2009T24"]
["OntoNotes Release 4.0","LDC2011T03","http://www.ldc.upenn.edu/Catalog/CatalogEntry.jsp?catalogId=LDC2011T03"]
["OntoNotes Release 5.0","LDC2013T19","http://catalog.ldc.upenn.edu/LDC2013T19"]
["OntoNotes v1.0","LDC2007T21","http://www.ldc.upenn.edu/Catalog/CatalogEntry.jsp?catalogId=LDC2007T21"]
["Penn Discourse Treebank Version 2","LDC2008T05","http://www.ldc.upenn.edu/Catalog/CatalogEntry.jsp?catalogId=LDC2008T05"]
["Penn Discourse Treebank Version 2","LDC2008T05","http://www.ldc.upenn.edu/Catalog/CatalogEntry.jsp?catalogId=LDC2008T05"]
["Penn Discourse Treebank Version 2.0 - German Translation",{"$f":"RIGHT(C365,10)","v":"LDC2021T05"},"https://catalog.ldc.upenn.edu/LDC2021T05"]
["Penn Discourse Treebank Version 3.0","LDC2019T05","https://catalog.ldc.upenn.edu/LDC2019T05"]
["PennBioIE CYP 1.0","LDC2008T20","http://www.ldc.upenn.edu/Catalog/CatalogEntry.jsp?catalogId=LDC2008T20"]
["PennBioIE Oncology 1.0","LDC2008T21","http://www.ldc.upenn.edu/Catalog/CatalogEntry.jsp?catalogId=LDC2008T21"]
["Phonemes of Arabic","LDC2020S13","https://catalog.ldc.upenn.edu/LDC2020S13"]
["Phrase Detectives Corpus","LDC2017T08","https://catalog.ldc.upenn.edu/LDC2017T08"]
["Phrase Detectives Corpus Version 2","LDC2019T10","https://catalog.ldc.upenn.edu/LDC2019T10"]
["Polish Speech Database","LDC2019S19","https://catalog.ldc.upenn.edu/LDC2019S19"]
["Prague Czech-English Dependency Treebank 2.0","LDC2012T08","http://www.ldc.upenn.edu/Catalog/CatalogEntry.jsp?catalogId=LDC2012T08"]
["Qatari Corpus of Argumentative Writing","LDC2022T04","https://catalog.ldc.upenn.edu/LDC2022T04"]
["RATS Keyword Spotting","LDC2017S20","https://catalog.ldc.upenn.edu/LDC2017S20"]
["RATS Language Identification",{"$f":"RIGHT(C376,10)","v":"LDC2018S10"},"https://catalog.ldc.upenn.edu/LDC2018S10"]
["RATS Language Identification",{"$f":"RIGHT(C377,10)","v":"LDC2018S10"},"https://catalog.ldc.upenn.edu/LDC2018S10"]
["RATS Speaker Identification","LDC2021S08","https://catalog.ldc.upenn.edu/LDC2021S08"]
["Rhythm and Pitch","LDC2018S04","https://catalog.ldc.upenn.edu/LDC2018S04"]
["Richer Event Description","LDC2016T23","https://catalog.ldc.upenn.edu/LDC2016T23"]
["Rime-Cantonese: A Normalized Cantonese Jyutping Lexicon","LDC2022L01","https://catalog.ldc.upenn.edu/LDC2022L01"]
["Russian-English Computer Security Parallel Text","LDC2012T23","http://www.ldc.upenn.edu/Catalog/CatalogEntry.jsp?catalogId=LDC2012T23"]
["Samrómur Children Icelandic Speech 1.0","LDC2022S11","https://catalog.ldc.upenn.edu/LDC2022S11"]
["SDP 2014 & 2015: Broad Coverage Semantic Dependency Parsing","LDC2016T10","http://www.ldc.upenn.edu/Catalog/CatalogEntry.jsp?catalogId=LDC2016T10"]
["Second DIHARD Challenge Development - Eleven Sources","LDC2021S10","https://catalog.ldc.upenn.edu/LDC2021S10"]
["Second DIHARD Challenge Evaluation - Eleven Sources","LDC2022S06","https://catalog.ldc.upenn.edu/LDC2022S06"]
["Semantic Textual Similarity (STS) 2013 Machine Translation",{"$f":"RIGHT(C387,10)","v":"LDC2013T18"},"http://catalog.ldc.upenn.edu/LDC2013T18"]
["SemEval-2010 Task 1 OntoNotes English: Coreference Resolution in Multiple Languages","LDC2011T01","http://www.ldc.upenn.edu/Catalog/CatalogEntry.jsp?catalogId=LDC2011T01"]
["SPADE","LDC2018T09","https://catalog.ldc.upenn.edu/LDC2018T09"]
["Spanish Gigaword Second Edition","LDC2009T21","http://www.ldc.upenn.edu/Catalog/CatalogEntry.jsp?catalogId=LDC2009T21"]
["Spanish Gigaword Third Edition","LDC2011T12","http://www.ldc.upenn.edu/Catalog/catalogEntry.jsp?catalogId=LDC2011T12"]
["Spanish Timebank 1.0","LDC2012T12","http://www.ldc.upenn.edu/Catalog/catalogEntry.jsp?catalogId=LDC2012T12"]
["Speech Sentiment Annotations","LDC2020T14","https://catalog.ldc.upenn.edu/LDC2020T14"]
["SRI Speech-Based Collaborative Learning Corpus","LDC2019S01","https://catalog.ldc.upenn.edu/LDC2019S01"]
["SRI-FRTIV","LDC2017S18","https://catalog.ldc.upenn.edu/LDC2017S18"]
["TAC KBP Chinese Cross-lingual Entity Linking - Comprehensive Training and Evaluation Data 2011-2014","LDC2017T17","https://catalog.ldc.upenn.edu/LDC2017T17"]
["TAC KBP Chinese Regular Slot Filling - Comprehensive Training and Evaluation Data 2014","LDC2019T08","https://catalog.ldc.upenn.edu/LDC2019T08"]
["TAC KBP Cold Start - Comprehensive Evaluation Data 2012-2017","LDC2019T17","https://catalog.ldc.upenn.edu/LDC2019T17"]
["TAC KBP Cold Start - Comprehensive Evaluation Data 2012-2017","LDC2019T17","https://catalog.ldc.upenn.edu/LDC2019T17"]
["TAC KBP Comprehensive English Source Corpora 2009-2014","LDC2018T03","https://catalog.ldc.upenn.edu/LDC2018T03"]
["TAC KBP English Entity Linking - Comprehensive Training and Evaluation Data 2009-2013",{"$f":"RIGHT(C401,10)","v":"LDC2018T16"},"https://catalog.ldc.upenn.edu/LDC2018T16"]
["TAC KBP English Entity Linking - Comprehensive Training and Evaluation Data 2009-2013",{"$f":"RIGHT(C402,10)","v":"LDC2018T16"},"https://catalog.ldc.upenn.edu/LDC2018T16"]
["TAC KBP English Event Argument - Training and Evaluation Data 2014-2015","LDC2020T03","https://catalog.ldc.upenn.edu/LDC2020T03"]
["TAC KBP English Event Nugget Detection and Coreference - Comprehensive Training and Evaluation Data 2014-2015","LDC2020T13","https://catalog.ldc.upenn.edu/LDC2020T13"]
["TAC KBP English Regular Slot Filling - Comprehensive Training and Evaluation Data 2009-2014",{"$f":"RIGHT(C405,10)","v":"LDC2018T22"},"https://catalog.ldc.upenn.edu/LDC2018T22"]
["TAC KBP English Sentiment Slot Filling -- Comprehensive Training and Evaluation Data 2013-2014","LDC2021T08","https://catalog.ldc.upenn.edu/LDC2021T08"]
["TAC KBP English Surprise Slot Filling -- Comprehensive Training and Evaluation Data 2010",{"$f":"RIGHT(C407,10)","v":"LDC2021T06"},"https://catalog.ldc.upenn.edu/LDC2021T06"]
["TAC KBP English Temporal Slot Filling - Comprehensive Training and Evaluation Data 2011 and 2013","LDC2020T08","https://catalog.ldc.upenn.edu/LDC2020T08"]
["TAC KBP Entity Discovery and Linking - Comprehensive Evaluation Data 2016-2017","LDC2019T19","https://catalog.ldc.upenn.edu/LDC2019T19"]
["TAC KBP Entity Discovery and Linking - Comprehensive Training and Evaluation Data 2014-2015","LDC2019T02","https://catalog.ldc.upenn.edu/LDC2019T02"]
["TAC KBP Evaluation Source Corpora 2016-2017","LDC2019T12","https://catalog.ldc.upenn.edu/LDC2019T12"]
["TAC KBP Spanish Cross-Lingual Entity Linking","LDC2016T26","https://catalog.ldc.upenn.edu/LDC2016T26"]
["TAC Relation Extraction Dataset","LDC2018T24","https://catalog.ldc.upenn.edu/LDC2018T24"]
["Tagged Chinese Gigaword","LDC2007T03","http://www.ldc.upenn.edu/Catalog/catalogEntry.jsp?catalogId=LDC2007T03"]
["Tagged Chinese Gigaword version 2.0","LDC2009T14","http://www.ldc.upenn.edu/Catalog/CatalogEntry.jsp?catalogId=LDC2009T14"]
["The Celex Lexical Database"]
["The Celex Lexical Database Release 2","LDC96L14","http://www.ldc.upenn.edu/Catalog/CatalogEntry.jsp?catalogId=LDC96L14"]
["The Child Subglottal Resonances Database","LDC2022S02","https://catalog.ldc.upenn.edu/LDC2022S02"]
["The DKU-JNU-EMA Electromagnetic Articulography Database","LDC2019S14","https://catalog.ldc.upenn.edu/LDC2019S14"]
["The EventStatus Corpus","LDC2017T09","https://catalog.ldc.upenn.edu/LDC2017T09"]
["The New York Times Annotated Corpus","LDC2008T19","http://www.ldc.upenn.edu/Catalog/CatalogEntry.jsp?catalogId=LDC2008T19"]
["The SSNCE Database of Tamil Dysarthric Speech","LDC2021S04","https://catalog.ldc.upenn.edu/LDC2021S04"]
["The Walking Around Corpus","LDC2015S08","http://www.ldc.upenn.edu/Catalog/CatalogEntry.jsp?catalogId=LDC2015S08"]
["Third DIHARD Challenge Development","LDC2022S12","https://catalog.ldc.upenn.edu/LDC2022S12"]
["TIPSTER Information Retrieval","LDC93T3A","http://www.ldc.upenn.edu/Catalog/CatalogEntry.jsp?catalogId=LDC93T3A"]
["TORGO Database of Dysarthric Articulation","LDC2012S02","http://www.ldc.upenn.edu/Catalog/CatalogEntry.jsp?catalogId=LDC2012S02"]
["TRAD Arabic-French Parallel Text -- Newsgroup",{"$f":"RIGHT(C427,10)","v":"LDC2018T13"},"https://catalog.ldc.upenn.edu/LDC2018T13"]
["TRECVID 2003 Keyframes & Transcripts","LDC2007V02","http://www.ldc.upenn.edu/Catalog/CatalogEntry.jsp?catalogId=LDC2007V02"]
["TRECVID 2004 Keyframes & Transcripts","LDC2010V01","http://www.ldc.upenn.edu/Catalog/CatalogEntry.jsp?catalogId=LDC2010V01"]
["TRECVID 2005 Keyframes & Transcripts","LDC2007V01","http://www.ldc.upenn.edu/Catalog/CatalogEntry.jsp?catalogId=LDC2007V01"]
["TRECVID 2006 Keyframes","LDC2010V02","http://www.ldc.upenn.edu/Catalog/CatalogEntry.jsp?catalogId=LDC2010V02"]
["Treebank-3","LDC99T42","http://www.ldc.upenn.edu/Catalog/CatalogEntry.jsp?catalogId=LDC99T42"]
["TS Wikipedia","LDC2015T15","http://www.ldc.upenn.edu/Catalog/CatalogEntry.jsp?catalogId=LDC2015T15"]
["Turkish Broadcast News Speech and Transcripts","LDC2012S06","http://www.ldc.upenn.edu/Catalog/CatalogEntry.jsp?catalogId=LDC2012S06"]
["UCLA High-Speed Laryngeal Video and Audio","LDC2017V01","https://catalog.ldc.upenn.edu/LDC2017V01"]
["UCLA Speaker Variability Database","LDC2021S09","https://catalog.ldc.upenn.edu/LDC2021S09"]
["UCLA Speaker Variability Database","LDC2021S09","https://catalog.ldc.upenn.edu/LDC2021S09"]
["VAST Chinese Speech and Transcripts","LDC2019S05","https://catalog.ldc.upenn.edu/LDC2019S05"]
["Web 1T 5-gram Version 1","LDC2006T13","http://www.ldc.upenn.edu/Catalog/CatalogEntry.jsp?catalogId=LDC2006T13"]
["Web 1T 5-gram, 10 European Languages Version 1","LDC2009T25","http://www.ldc.upenn.edu/Catalog/CatalogEntry.jsp?catalogId=LDC2009T25"]
["West Point Brazilian Portuguese Speech","LDC2008S04","http://www.ldc.upenn.edu/Catalog/CatalogEntry.jsp?catalogId=LDC2008S04"]
["West Point Croatian Speech Corpus","LDC2005S28","http://www.ldc.upenn.edu/Catalog/CatalogEntry.jsp?catalogId=LDC2005S28"]
["Wikipedia Spanish Speech and Transcripts","LDC2021S07","https://catalog.ldc.upenn.edu/LDC2021S07"]
["WTIMIT 1.0","LDC2010S02","http://www.ldc.upenn.edu/Catalog/CatalogEntry.jsp?catalogId=LDC2010S02"]
["X-SRL: Parallel Cross-lingual Semantic Role Labeling","LDC2021T09","https://catalog.ldc.upenn.edu/LDC2021T09"]

{"sheet":"Sheet3","index":1,"n_rows":0,"n_cols":0,"rows_kept":0}